bitfinex/quotes_BTCUSD_20220111
["timestamp","ask_amount","ask_price","bid_price","bid_amount"]
[1641944305803,0.00197936,42780.0,42779.0,0.33098037]
[1641944306204,0.00797936,42780.0,42779.0,0.36098037]
[1641944307903,0.00197936,42780.0,42779.0,0.33098037]
[1641944308104,0.00897936,42780.0,42779.0,0.35998037]
[1641944308706,0.00897936,42780.0,42779.0,0.73491937]
[1641944309356,0.00197936,42780.0,42779.0,0.70591937]
[1641944310250,0.00918602,42780.0,42779.0,0.99042914]
[1641944310452,0.00918602,42780.0,42779.0,0.72891937]
[1641944310652,0.00985042,42780.0,42779.0,0.72891937]
[1641944311556,0.00185042,42780.0,42779.0,0.70591937]
[1641944312157,0.00885042,42780.0,42779.0,0.74291937]
[1641944314101,0.00885042,42780.0,42779.0,0.77691937]
[1641944314300,0.01585042,42780.0,42779.0,0.77691937]
[1641944315402,0.00885042,42780.0,42779.0,0.70591937]
[1641944315602,0.00185042,42780.0,42779.0,0.96151928]
[1641944316003,0.00185042,42780.0,42779.0,0.70591937]
[1641944316202,0.00785042,42780.0,42779.0,0.73791937]
[1641944317456,0.00185042,42780.0,42779.0,0.70591937]
[1641944317853,0.11689861,42785.0,42780.0,0.974939]
[1641944318057,0.5847,42795.0,42783.0,0.00128557]
[1641944318256,0.00015,42800.0,42791.0,0.00121536]
[1641944318455,0.00015,42800.0,42791.0,0.10751536]
[1641944318656,0.05843,42799.0,42791.0,0.10751536]
[1641944319056,0.05843,42799.0,42797.0,0.44146193]
[1641944320059,0.00015,42800.0,42797.0,0.44146193]
[1641944320314,0.024,42799.0,42795.0,0.30987342]
[1641944320704,0.024,42799.0,42798.0,0.00174274]
[1641944321005,0.024,42799.0,42798.0,0.77796494]
[1641944321206,0.024,42799.0,42798.0,0.37796494]
[1641944321403,0.024,42799.0,42798.0,0.47796494]
[1641944321603,0.00015,42800.0,42798.0,0.47796494]
[1641944321804,0.00015,42800.0,42799.0,0.5499]
[1641944322003,0.00015,42800.0,42799.0,0.924839]
[1641944322203,0.00015,42800.0,42799.0,0.474839]
[1641944322907,0.00015,42800.0,42799.0,0.0999]
[1641944325656,0.0032973,42800.0,42799.0,0.1005807]
[1641944329705,0.0032973,42800.0,42799.0,0.3305807]
[1641944330608,0.0032973,42800.0,42799.0,0.704839]
[1641944330808,0.0022482,42800.0,42799.0,0.704839]
[1641944331011,0.0022482,42800.0,42799.0,1.13706541]
[1641944332354,0.0022482,42800.0,42799.0,1.13906541]
[1641944333553,0.0022482,42800.0,42799.0,1.13706541]
[1641944334154,0.0022482,42800.0,42799.0,1.14006541]
[1641944335404,0.0022482,42800.0,42799.0,1.13706541]
[1641944336203,0.0022482,42800.0,42799.0,1.14306541]
[1641944337505,0.0022482,42800.0,42799.0,1.13706541]
[1641944338205,0.0022482,42800.0,42799.0,1.14406541]
[1641944338607,0.0022482,42800.0,42799.0,1.14532976]
[1641944339052,0.00247164,42808.0,42800.0,0.374939]
[1641944339251,0.00247164,42808.0,42804.0,0.05841]
[1641944339453,0.00247164,42808.0,42807.0,0.37081629]
[1641944339651,0.00247164,42808.0,42807.0,1.76945256]
[1641944340252,0.00015,42810.0,42807.0,1.77145256]
[1641944340451,0.00015,42810.0,42808.0,0.374939]
[1641944340654,0.00015,42810.0,42808.0,0.474839]
[1641944341652,0.00823,42809.0,42808.0,0.474839]
[1641944342353,0.00823,42809.0,42808.0,0.477839]
[1641944343607,0.00823,42809.0,42808.0,0.474839]
[1641944344204,0.00823,42809.0,42808.0,0.477839]
[1641944345506,0.00823,42809.0,42808.0,0.0999]
[1641944345706,0.01085551,42809.0,42808.0,0.10168738]
[1641944345906,0.01085551,42809.0,42808.0,0.47662638]
[1641944346308,0.01085551,42809.0,42808.0,0.47962638]
[1641944346553,0.01085551,42809.0,42808.0,0.73813117]
[1641944348257,0.01085551,42809.0,42808.0,0.74213117]
[1641944349259,0.01085551,42809.0,42808.0,0.48362638]
[1641944349457,0.01085551,42809.0,42808.0,0.47662638]
[1641944350305,0.01085551,42809.0,42808.0,0.48262638]
[1641944350704,0.01085551,42809.0,42808.0,0.48151967]
[1641944350906,0.01085551,42809.0,42808.0,0.71151967]
[1641944351608,0.01085551,42809.0,42808.0,0.70551967]
[1641944352407,0.01085551,42809.0,42808.0,0.96782991]
[1641944353609,0.01085551,42809.0,42808.0,0.96082991]
[1641944354261,0.01085551,42809.0,42808.0,0.71251967]
[1641944354460,0.01085551,42809.0,42808.0,0.96646242]
[1641944355465,0.01085551,42809.0,42808.0,0.71251967]
[1641944355666,0.01085551,42809.0,42808.0,0.70662638]
[1641944356065,0.01085551,42809.0,42808.0,0.96219092]
[1641944356369,0.01085551,42809.0,42808.0,0.97019092]
[1641944357570,0.01085551,42809.0,42808.0,0.96219092]
[1641944357807,0.01085551,42809.0,42808.0,0.70662638]
[1641944358302,0.01085551,42809.0,42808.0,0.71362638]
[1641944358501,0.01085551,42809.0,42808.0,0.96902078]
[1641944359004,0.01085551,42809.0,42808.0,0.71362638]
[1641944359201,0.01085551,42809.0,42808.0,0.96951265]
[1641944359601,0.01085551,42809.0,42808.0,0.70662638]
[1641944360404,0.01085551,42809.0,42808.0,0.9691127]
[1641944360604,0.01085551,42809.0,42808.0,0.71351967]
[1641944360804,0.01085551,42809.0,42808.0,0.97306086]
[1641944361658,0.01085551,42809.0,42808.0,0.96506086]
[1641944362457,0.01085551,42809.0,42808.0,0.97306086]
[1641944362857,0.01085551,42809.0,42808.0,0.71351967]
[1641944363656,0.01085551,42809.0,42808.0,0.70551967]
[1641944364557,0.01085551,42809.0,42808.0,0.71351967]
[1641944364958,0.01085551,42809.0,42808.0,0.33858067]
[1641944365612,0.01085551,42809.0,42808.0,0.33168738]
[1641944366414,0.01085551,42809.0,42808.0,0.64678299]
[1641944367616,0.01085551,42809.0,42808.0,0.64278299]
[1641944368314,0.01085551,42809.0,42808.0,0.64678299]
[1641944369157,0.01085551,42809.0,42808.0,0.33568738]
[1641944369559,0.01085551,42809.0,42808.0,0.33168738]
[1641944370360,0.01085551,42809.0,42808.0,0.33568738]
[1641944370761,0.01085551,42809.0,42808.0,0.3339]
[1641944371562,0.01085551,42809.0,42808.0,0.3299]
[1641944372265,0.01085551,42809.0,42808.0,0.704839]
[1641944372464,0.01032364,42809.0,42808.0,0.708839]
[1641944372664,0.01032364,42809.0,42808.0,0.3339]
[1641944373807,0.01032364,42809.0,42808.0,0.3299]
[1641944374407,0.01032364,42809.0,42808.0,0.3339]
[1641944375209,0.01032364,42809.0,42808.0,0.708839]
[1641944375406,0.01032364,42809.0,42808.0,0.3339]
[1641944375610,0.01032364,42809.0,42808.0,0.3299]
[1641944376009,0.31874364,42809.0,42808.0,0.3299]
[1641944376207,0.06874364,42809.0,42808.0,0.3299]
[1641944376409,0.08974364,42809.0,42808.0,0.3299]
[1641944377660,0.06874364,42809.0,42808.0,0.3299]
[1641944378058,0.32646854,42809.0,42808.0,0.3299]
[1641944378461,0.34646854,42809.0,42808.0,0.3299]
[1641944379662,0.32646854,42809.0,42808.0,0.3299]
[1641944380324,0.34546854,42809.0,42808.0,0.3299]
[1641944380513,0.08774364,42809.0,42808.0,0.3299]
[1641944380714,0.33378799,42809.0,42808.0,0.3299]
[1641944380914,0.0280084,42809.0,42808.0,0.3299]
[1641944381720,0.0090084,42809.0,42808.0,0.3299]
[1641944382316,0.0090084,42809.0,42808.0,0.704839]
[1641944382520,0.0260084,42809.0,42808.0,0.706839]
[1641944383717,0.0090084,42809.0,42808.0,0.704839]
[1641944384459,0.0260084,42809.0,42808.0,0.709839]
[1641944385759,0.0090084,42809.0,42808.0,0.704839]
[1641944386459,0.00015,42810.0,42808.0,0.711839]
[1641944386660,0.00015,42810.0,42809.0,0.374939]
[1641944386860,0.00015,42810.0,42809.0,0.887229]
[1641944387460,0.00015,42810.0,42809.0,0.53846682]
[1641944388409,0.01415,42810.0,42809.0,0.54846682]
[1641944389610,0.00015,42810.0,42809.0,0.53846682]
[1641944390409,0.00015,42810.0,42809.0,0.55246682]
[1641944390807,0.00129664,42810.0,42809.0,0.55329676]
[1641944391856,0.00129664,42810.0,42809.0,0.53929676]
[1641944392457,0.00129664,42810.0,42809.0,0.55429676]
[1641944394258,0.00129664,42810.0,42809.0,0.53929676]
[1641944394558,0.00077396,42810.0,42809.0,0.55429676]
[1641944395708,0.00114711,42810.0,42809.0,0.53929676]
[1641944396509,0.00114711,42810.0,42809.0,0.49190676]
[1641944397709,0.00114711,42810.0,42809.0,0.47690676]
[1641944398510,0.00314711,42810.0,42809.0,0.49190676]
[1641944398710,0.00061302,42812.0,42810.0,0.3]
[1641944399059,0.00061302,42812.0,42811.0,0.374939]
[1641944399559,0.00061302,42812.0,42811.0,0.474839]
[1641944400059,0.00061302,42812.0,42811.0,0.464839]
[1641944400360,0.00061304,42814.0,42812.0,0.3625331]
[1641944400663,0.00061304,42814.0,42813.0,0.374939]
[1641944401660,0.09901304,42816.0,42813.0,0.374939]
[1641944402461,0.10901304,42816.0,42813.0,0.382939]
[1641944402663,0.10901304,42816.0,42814.0,0.41271085]
[1641944402911,0.05061302,42816.0,42815.0,0.374614]
[1641944403111,0.01,42816.0,42814.0,0.41271085]
[1641944403315,0.01,42816.0,42814.0,0.47110985]
[1641944403710,0.05,42818.0,42814.0,0.47110985]
[1641944403911,0.00039514,42817.0,42814.0,0.47110985]
[1641944404110,0.24695617,42817.0,42814.0,0.058399]
[1641944404311,0.25537552,42817.0,42814.0,0.058399]
[1641944404511,0.31737552,42817.0,42816.0,0.26774617]
[1641944405312,0.062,42817.0,42816.0,0.26774617]
[1641944405512,0.012,42817.0,42816.0,0.26774617]
[1641944405712,0.10913091,42818.0,42816.0,0.26859056]
[1641944405916,0.05913091,42818.0,42816.0,0.26859056]
[1641944406114,0.00073515,42818.0,42816.0,0.26859056]
[1641944406560,0.034,42818.0,42816.0,0.21589056]
[1641944406960,0.034,42818.0,42816.0,0.27428656]
[1641944407761,0.00793237,42819.0,42816.0,0.26828656]
[1641944408564,0.04193237,42819.0,42816.0,0.27328656]
[1641944408762,0.04118425,42819.0,42816.0,0.27328656]
[1641944409664,0.00718425,42819.0,42816.0,0.20989056]
[1641944409861,0.00718425,42819.0,42816.0,0.26828756]
[1641944410509,0.05018425,42819.0,42816.0,0.27228756]
[1641944410708,0.00135638,42830.0,42817.0,0.00063349]
[1641944410913,0.9379,42839.0,42817.0,0.00063349]
[1641944410914,1.27781052,42846.0,42822.0,0.65]
[1641944411115,1.97622612,42847.0,42822.0,0.65]
[1641944411116,1.8754,42847.0,42839.0,0.05957657]
[1641944411312,0.374614,42846.0,42845.0,0.00126021]
[1641944411511,0.374614,42846.0,42839.0,0.05957657]
[1641944411512,0.374614,42846.0,42839.0,0.058367]
[1641944411711,0.374614,42846.0,42839.0,0.27992915]
[1641944411712,0.00194794,42846.0,42839.0,0.27992915]
[1641944412308,0.374614,42845.0,42839.0,0.27992915]
[1641944412509,0.00033474,42845.0,42839.0,0.27992915]
[1641944412710,0.058378,42842.0,42839.0,0.27992915]
[1641944412909,0.374614,42841.0,42838.0,0.00128445]
[1641944413110,0.05,42841.0,42838.0,0.00128445]
[1641944413310,0.166757,42843.0,42833.0,0.2744372]
[1641944413510,0.16709174,42843.0,42832.0,0.10619137]
[1641944413815,0.058377,42839.0,42832.0,0.04781237]
[1641944414062,0.36595416,42839.0,42832.0,0.0466]
[1641944414263,0.1,42835.0,42828.0,0.31628606]
[1641944414662,0.15,42835.0,42829.0,0.00015]
[1641944414867,0.00194794,42834.0,42829.0,0.00015]
[1641944415069,0.058388,42837.0,42833.0,0.00124316]
[1641944415268,0.04715118,42838.0,42833.0,0.00124316]
[1641944415467,0.2660545,42837.0,42833.0,0.00124316]
[1641944415664,0.00140794,42838.0,42834.0,0.00042969]
[1641944415867,0.374614,42837.0,42834.0,0.00042969]
[1641944416066,0.2660545,42836.0,42834.0,0.00042969]
[1641944416268,0.374614,42835.0,42834.0,0.00042969]
[1641944416667,0.108384,42836.0,42834.0,0.00042969]
[1641944417065,0.374614,42835.0,42834.0,0.00042969]
[1641944419517,0.0012475,42837.0,42834.0,0.00042969]
[1641944419713,0.374614,42836.0,42834.0,0.00042969]
[1641944419914,0.424614,42836.0,42834.0,0.00042969]
[1641944420516,0.27889256,42835.0,42834.0,0.002]
[1641944420716,0.3754703,42835.0,42834.0,0.2522095]
[1641944421017,0.3754703,42835.0,42834.0,0.002]
[1641944421216,0.3754703,42835.0,42834.0,0.232]
[1641944421860,0.0008563,42835.0,42834.0,0.23]
[1641944422462,0.0138563,42835.0,42834.0,0.232]
[1641944423662,0.0008563,42835.0,42834.0,0.23]
[1641944424461,0.0148563,42835.0,42834.0,0.233]
[1641944425916,0.0008563,42835.0,42834.0,0.23053778]
[1641944426517,0.0208563,42835.0,42834.0,0.23053778]
[1641944427414,0.0674563,42835.0,42834.0,0.23053778]
[1641944427816,0.0474563,42835.0,42834.0,0.23053778]
[1641944428615,0.0684563,42835.0,42834.0,0.23053778]
[1641944429863,0.0474563,42835.0,42834.0,0.23053778]
[1641944430465,0.0774563,42835.0,42834.0,0.23053778]
[1641944430670,0.07334098,42835.0,42834.0,0.23053778]
[1641944431766,0.04334098,42835.0,42834.0,0.23053778]
[1641944432567,0.04334098,42835.0,42834.0,0.23453778]
[1641944433813,0.04334098,42835.0,42834.0,0.23053778]
[1641944434616,0.04334098,42835.0,42834.0,0.23453778]
[1641944435614,0.04401158,42835.0,42834.0,0.23453778]
[1641944435814,0.04401158,42835.0,42834.0,0.23053778]
[1641944436567,0.04401158,42835.0,42834.0,0.23253778]
[1641944437969,0.04401158,42835.0,42834.0,0.23053778]
[1641944438569,0.06101158,42835.0,42834.0,0.23453778]
[1641944439870,0.04401158,42835.0,42834.0,0.23053778]
[1641944440311,0.04321785,42835.0,42834.0,0.23053778]
[1641944440513,0.06221785,42835.0,42834.0,0.23453778]
[1641944441812,0.04321785,42835.0,42834.0,0.23053778]
[1641944442417,0.4,42834.0,42830.0,0.00015]
[1641944442614,0.058388,42832.0,42830.0,0.00015]
[1641944442813,0.421214,42831.0,42830.0,0.00015]
[1641944443213,0.73969441,42831.0,42830.0,0.00015]
[1641944443614,0.058395,42829.0,42825.0,0.058543]
[1641944443817,0.0466,42828.0,42826.0,0.00015]
[1641944444566,0.32449638,42828.0,42825.0,0.00015]
[1641944444772,0.058394,42827.0,42825.0,0.00015]
[1641944444968,0.0466,42826.0,42825.0,0.058543]
[1641944445571,0.29386348,42826.0,42825.0,0.058543]
[1641944445770,0.29418977,42826.0,42825.0,0.058543]
[1641944445971,0.0466,42826.0,42825.0,0.058543]
[1641944446573,0.1216,42826.0,42825.0,0.058543]
[1641944447572,0.1216,42826.0,42825.0,0.00015]
[1641944447818,0.0466,42826.0,42825.0,0.00015]
[1641944448013,0.0466,42826.0,42824.0,0.00015]
[1641944448213,0.0966,42826.0,42824.0,0.116927]
[1641944448413,0.0466,42826.0,42824.0,0.116927]
[1641944448612,0.0466,42826.0,42825.0,0.00015]
[1641944448613,0.1076,42826.0,42825.0,0.00015]
[1641944449814,0.0966,42826.0,42825.0,0.00015]
[1641944450219,0.3636218,42826.0,42820.0,0.00015]
[1641944450417,0.5831,42821.0,42820.0,0.00015]
[1641944450619,0.6797,42821.0,42819.0,0.00015]
[1641944450815,0.3531,42820.0,42819.0,0.00015]
[1641944451015,0.3997,42820.0,42819.0,0.00015]
[1641944451216,0.3997,42820.0,42819.0,0.29177804]
[1641944451415,0.458106,42820.0,42819.0,0.29177804]
[1641944451674,0.458106,42820.0,42819.0,0.29192804]
[1641944451974,0.458106,42820.0,42819.0,0.00015]
[1641944452174,0.83272,42820.0,42819.0,0.00015]
[1641944452375,0.83272,42820.0,42810.0,0.00015]
[1641944452376,0.83272,42820.0,42811.0,0.00015]
[1641944452577,0.25849618,42819.0,42810.0,0.0003]
[1641944452774,0.058411,42814.0,42810.0,0.0003]
[1641944452975,0.0466,42813.0,42812.0,0.058409]
[1641944453173,0.0466,42813.0,42812.0,0.31172257]
[1641944453377,0.0466,42813.0,42812.0,0.31271564]
[1641944454074,0.0466,42813.0,42812.0,0.25430664]
[1641944454474,0.0466,42813.0,42812.0,0.25346357]
[1641944454675,0.0546,42813.0,42812.0,0.27646357]
[1641944455713,0.05545556,42813.0,42812.0,0.27686705]
[1641944456013,0.04745556,42813.0,42812.0,0.25386705]
[1641944456514,0.05245556,42813.0,42812.0,0.27886705]
[1641944457818,0.04745556,42813.0,42812.0,0.25386705]
[1641944458714,0.04745556,42813.0,42812.0,0.28586705]
[1641944459966,0.04745556,42813.0,42812.0,0.25386705]
[1641944460373,0.29905028,42813.0,42812.0,0.25386705]
[1641944460668,0.35405028,42813.0,42812.0,0.25986705]
[1641944460867,0.10245556,42813.0,42812.0,0.25986705]
[1641944461267,0.05245556,42813.0,42812.0,0.25986705]
[1641944461868,0.04745556,42813.0,42812.0,0.25386705]
[1641944462069,0.04745556,42813.0,42812.0,0.48386705]
[1641944462670,0.05245556,42813.0,42812.0,0.49886705]
[1641944463916,0.04745556,42813.0,42812.0,0.48386705]
[1641944464615,0.06345556,42813.0,42812.0,0.48586705]
[1641944465218,0.01685556,42813.0,42812.0,0.86048105]
[1641944465618,0.01685556,42813.0,42812.0,0.86007757]
[1641944466118,0.00085556,42813.0,42812.0,0.85807757]
[1641944466668,0.00085556,42813.0,42812.0,0.87307757]
[1641944467069,0.00085556,42813.0,42812.0,0.49846357]
[1641944467971,0.00085556,42813.0,42812.0,0.85807757]
[1641944468170,0.00085556,42813.0,42812.0,0.95807757]
[1641944468370,0.00085556,42813.0,42812.0,1.0092849]
[1641944468571,0.00085556,42813.0,42812.0,1.0332849]
[1641944468769,0.00085556,42813.0,42812.0,1.1886849]
[1641944468970,0.00085556,42813.0,42812.0,1.2386849]
[1641944469168,0.00085556,42813.0,42812.0,1.1886849]
[1641944469770,0.00085556,42813.0,42812.0,0.8140709]
[1641944469970,0.00085556,42813.0,42812.0,0.7900709]
[1641944470172,0.00085556,42813.0,42812.0,1.1646849]
[1641944470622,0.00085556,42813.0,42812.0,1.2286849]
[1641944470824,0.058405,42819.0,42815.0,0.058405]
[1641944471221,0.058405,42819.0,42816.0,0.00015]
[1641944471620,0.105005,42819.0,42816.0,0.00015]
[1641944471820,0.155005,42819.0,42816.0,0.00015]
[1641944472621,0.0526,42819.0,42816.0,0.01415]
[1641944473020,0.0526,42819.0,42817.0,0.00015]
[1641944473221,0.0526,42819.0,42817.0,0.058549]
[1641944473420,0.006,42819.0,42817.0,0.058549]
[1641944473621,0.006,42819.0,42818.0,0.25015]
[1641944473824,0.00085589,42825.0,42818.0,0.00015]
[1641944474069,0.05924989,42825.0,42821.0,0.2970461]
[1641944474270,0.374614,42824.0,42821.0,0.3554401]
[1641944474471,0.424614,42824.0,42821.0,0.3554401]
[1641944474670,0.424614,42824.0,42821.0,0.3584401]
[1641944475674,0.42547094,42824.0,42821.0,0.3584401]
[1641944475877,0.42547094,42824.0,42821.0,0.3554401]
[1641944476074,0.42547094,42824.0,42820.0,0.00139623]
[1641944476275,0.52547094,42824.0,42820.0,0.00069814]
[1641944476474,0.374614,42821.0,42820.0,0.00084814]
[1641944476675,0.421214,42821.0,42820.0,0.00184814]
[1641944476877,0.471214,42821.0,42820.0,0.00184814]
[1641944477075,0.56935448,42821.0,42820.0,0.00184814]
[1641944477476,0.78975178,42821.0,42820.0,0.00115]
[1641944477918,0.6916113,42821.0,42820.0,0.00015]
[1641944478121,0.471214,42821.0,42820.0,0.00015]
[1641944478319,0.529616,42821.0,42819.0,0.00015]
[1641944478719,0.5831,42820.0,42819.0,0.00015]
[1641944478919,0.6297,42820.0,42819.0,0.00015]
[1641944480320,0.6297,42820.0,42818.0,0.00015]
[1641944480522,0.5831,42819.0,42818.0,0.00015]
[1641944480724,0.6297,42819.0,42818.0,0.00015]
[1641944482777,0.6437,42819.0,42818.0,0.00615]
[1641944483378,0.6387,42819.0,42818.0,0.00615]
[1641944483781,0.67470215,42819.0,42818.0,0.00615]
[1641944483977,0.66070215,42819.0,42818.0,0.00015]
[1641944484881,0.67570215,42819.0,42818.0,0.00615]
[1641944485517,0.67655833,42819.0,42818.0,0.00615]
[1641944485917,0.66155833,42819.0,42818.0,0.00015]
[1641944486720,0.72455833,42819.0,42818.0,0.00715]
[1641944487019,0.7317431,42819.0,42818.0,0.00715]
[1641944487920,0.7187431,42819.0,42818.0,0.00015]
[1641944488319,0.7187431,42819.0,42817.0,0.00015]
[1641944488521,0.641504,42818.0,42817.0,0.00015]
[1641944488721,0.688104,42818.0,42817.0,0.00015]
[1641944489070,0.6297,42818.0,42817.0,0.00015]
[1641944489871,0.6297,42818.0,42816.0,0.00015]
[1641944490071,0.5831,42817.0,42816.0,0.00015]
[1641944490273,0.6297,42817.0,42816.0,0.00015]
[1641944490674,0.6367,42817.0,42816.0,0.01215]
[1641944491973,0.6297,42817.0,42816.0,0.00015]
[1641944492822,0.6297,42817.0,42816.0,0.01415]
[1641944492823,0.6327,42817.0,42816.0,0.01415]
[1641944494022,0.6297,42817.0,42816.0,0.00015]
[1641944494823,0.6327,42817.0,42816.0,0.01315]
[1641944495520,0.63355587,42817.0,42816.0,0.01315]
[1641944495923,0.63055587,42817.0,42816.0,0.00015]
[1641944496672,0.63355587,42817.0,42816.0,0.01415]
[1641944497975,0.63055587,42817.0,42816.0,0.00015]
[1641944498672,0.63755587,42817.0,42816.0,0.01215]
[1641944499875,0.63055587,42817.0,42816.0,0.00015]
[1641944500826,0.63455587,42817.0,42816.0,0.01715]
[1641944501623,0.63967921,42817.0,42816.0,0.01715]
[1641944502026,0.63567921,42817.0,42816.0,0.00015]
[1641944502724,0.63667921,42817.0,42816.0,0.02715]
[1641944503927,0.88935584,42817.0,42814.0,0.00069819]
[1641944504177,0.5831,42815.0,42814.0,0.00069819]
[1641944504376,1.32784419,42815.0,42814.0,0.00069819]
[1641944504580,1.33296753,42815.0,42814.0,0.00069819]
[1641944504875,1.34096753,42815.0,42814.0,0.01169819]
[1641944505075,1.75487214,42815.0,42814.0,0.011]
[1641944505576,1.75565007,42815.0,42814.0,0.011]
[1641944505977,1.48211988,42815.0,42814.0,0.011]
[1641944506178,1.47411988,42815.0,42812.0,0.23069821]
[1641944506379,0.957714,42813.0,42812.0,0.23069821]
[1641944506578,1.054314,42813.0,42812.0,0.23069821]
[1641944507583,1.05943734,42813.0,42812.0,0.23]
[1641944508425,1.23471534,42813.0,42812.0,0.23]
[1641944508626,0.65,42812.0,42810.0,0.00139644]
[1641944508826,0.65,42812.0,42806.0,0.00015]
[1641944508827,0.00124721,42809.0,42806.0,0.00015]
[1641944509126,0.957714,42807.0,42805.0,0.00934]
[1641944509328,1.004314,42806.0,42805.0,0.00934]
[1641944509528,1.38308364,42806.0,42800.0,0.50061]
[1641944509733,0.8331,42801.0,42800.0,0.05739497]
[1641944509931,0.5,42800.0,42797.0,0.2]
[1641944510226,0.96490482,42798.0,42797.0,0.2]
[1641944510425,1.06150482,42798.0,42797.0,0.2]
[1641944510627,0.116884,42796.0,42792.0,0.59782028]
[1641944510828,0.5831,42793.0,42792.0,0.59782028]
[1641944511026,0.6797,42793.0,42790.0,0.00015]
[1641944511226,0.641542,42791.0,42790.0,0.00015]
[1641944511435,0.738142,42791.0,42790.0,0.00015]
[1641944511674,0.738142,42791.0,42790.0,0.0003]
[1641944512280,0.738142,42791.0,42790.0,0.2303]
[1641944512775,0.743142,42791.0,42790.0,0.2303]
[1641944513176,0.743142,42791.0,42790.0,0.0003]
[1641944513978,0.74326534,42791.0,42790.0,0.0003]
[1641944514181,0.68482334,42791.0,42790.0,0.0003]
[1641944514782,0.68782334,42791.0,42790.0,0.0003]
[1641944515625,0.68859832,42791.0,42790.0,0.0003]
[1641944516026,0.68559832,42791.0,42790.0,0.0003]
[1641944516826,0.68859832,42791.0,42790.0,0.0003]
[1641944518027,0.68559832,42791.0,42790.0,0.0003]
[1641944518728,0.68659832,42791.0,42790.0,0.0003]
[1641944520571,0.68559832,42791.0,42790.0,0.24045515]
[1641944520772,0.63959832,42791.0,42790.0,0.24045515]
[1641944521876,0.05649832,42791.0,42790.0,0.24045515]
[1641944522073,0.05249832,42791.0,42790.0,0.24045515]
[1641944522924,0.05749832,42791.0,42790.0,0.24045515]
[1641944523321,0.05749832,42791.0,42790.0,0.0003]
[1641944524022,0.05249832,42791.0,42790.0,0.0003]
[1641944524824,0.05849832,42791.0,42790.0,0.0003]
[1641944526124,0.05249832,42791.0,42790.0,0.0003]
[1641944526773,0.05849832,42791.0,42790.0,0.0003]
[1641944528174,0.00589832,42791.0,42790.0,0.0003]
[1641944528774,0.00989832,42791.0,42790.0,0.0003]
[1641944529974,0.00589832,42791.0,42790.0,0.0003]
[1641944532628,0.00589832,42791.0,42790.0,0.35115078]
[1641944532826,0.00989832,42791.0,42790.0,0.35115078]
[1641944534071,0.00589832,42791.0,42790.0,0.58115078]
[1641944534770,0.01089832,42791.0,42790.0,0.58115078]
[1641944536072,0.00589832,42791.0,42790.0,0.2303]
[1641944536873,0.01089832,42791.0,42790.0,0.2303]
[1641944538022,0.05749832,42791.0,42790.0,0.2303]
[1641944538224,0.05249832,42791.0,42790.0,0.2303]
[1641944538826,0.23869802,42791.0,42790.0,0.2303]
[1641944539024,0.29809163,42791.0,42790.0,0.2303]
[1641944539231,0.70074563,42791.0,42790.0,0.2303]
[1641944539825,1.15318298,42791.0,42790.0,0.2303]
[1641944540024,1.20762698,42791.0,42790.0,0.2303]
[1641944540223,1.20886763,42791.0,42790.0,0.2253]
[1641944540424,1.21456752,42791.0,42790.0,0.21454687]
[1641944540826,1.21986763,42791.0,42790.0,0.21454687]
[1641944541224,1.19182763,42791.0,42790.0,0.21454687]
[1641944541873,0.54655632,42791.0,42790.0,0.21454687]
[1641944542072,0.53555632,42791.0,42790.0,0.21454687]
[1641944542871,0.55055632,42791.0,42790.0,0.21454687]
[1641944543476,0.17594232,42791.0,42790.0,0.21454687]
[1641944544275,0.16094232,42791.0,42790.0,0.21454687]
[1641944544674,0.53555632,42791.0,42790.0,0.21454687]
[1641944544875,0.55255632,42791.0,42790.0,0.21454687]
[1641944545075,0.86371822,42791.0,42790.0,0.21454687]
[1641944546031,0.55255632,42791.0,42790.0,0.21454687]
[1641944546827,0.56755632,42791.0,42790.0,0.21454687]
[1641944547629,0.55850824,42791.0,42790.0,0.21454687]
[1641944548129,0.52650824,42791.0,42790.0,0.21454687]
[1641944548829,0.54150824,42791.0,42790.0,0.20954687]
[1641944549879,0.48306424,42791.0,42790.0,0.20954687]
[1641944550281,0.46806424,42791.0,42790.0,0.20954687]
[1641944550880,0.48506424,42791.0,42790.0,0.20954687]
[1641944552288,0.46806424,42791.0,42790.0,0.20954687]
[1641944552923,0.48106424,42791.0,42790.0,0.20954687]
[1641944554226,0.46806424,42791.0,42790.0,0.20954687]
[1641944555023,0.48306424,42791.0,42790.0,0.20954687]
[1641944556124,0.46806424,42791.0,42790.0,0.20954687]
[1641944556773,0.09345024,42791.0,42790.0,0.20954687]
[1641944556972,0.12549832,42791.0,42790.0,0.20954687]
[1641944558775,0.10249832,42791.0,42790.0,0.20954687]
[1641944559075,0.07249832,42791.0,42790.0,0.20954687]
[1641944560073,0.12249832,42791.0,42790.0,0.20954687]
[1641944560325,0.10249832,42791.0,42790.0,0.20954687]
[1641944560523,0.05249832,42791.0,42790.0,0.20954687]
[1641944560921,0.07249832,42791.0,42790.0,0.20954687]
[1641944561322,0.42165348,42791.0,42790.0,0.20954687]
[1641944561521,0.79626748,42791.0,42790.0,0.20954687]
[1641944562321,0.77626748,42791.0,42790.0,0.20954687]
[1641944562521,0.77626748,42791.0,42790.0,0.20454687]
[1641944562922,0.78726748,42791.0,42790.0,0.20454687]
[1641944563823,0.48811232,42791.0,42790.0,0.20454687]
[1641944564475,0.47711232,42791.0,42790.0,0.20454687]
[1641944564673,0.10249832,42791.0,42790.0,0.20454687]
[1641944564874,0.05249832,42791.0,42790.0,0.20454687]
[1641944565074,0.07749832,42791.0,42790.0,0.20454687]
[1641944565376,0.12749832,42791.0,42790.0,0.20454687]
[1641944566175,0.10249832,42791.0,42790.0,0.20454687]
[1641944566575,0.05249832,42791.0,42790.0,0.20454687]
[1641944566977,0.06849832,42791.0,42790.0,0.20454687]
[1641944568226,0.42711232,42791.0,42790.0,0.20454687]
[1641944568426,0.47711232,42791.0,42790.0,0.20454687]
[1641944569026,0.48811232,42791.0,42790.0,0.20454687]
[1641944570327,0.47711232,42791.0,42790.0,0.20454687]
[1641944571028,0.49111232,42791.0,42790.0,0.20454687]
[1641944572175,0.47711232,42791.0,42790.0,0.20454687]
[1641944572976,0.49011232,42791.0,42790.0,0.20454687]
[1641944573578,0.49011232,42791.0,42790.0,0.09954687]
[1641944574278,0.47711232,42791.0,42790.0,0.09954687]
[1641944575078,0.48811232,42791.0,42790.0,0.09454687]
[1641944576324,0.47711232,42791.0,42790.0,0.09454687]
[1641944576725,0.42711232,42791.0,42790.0,0.09454687]
[1641944576925,0.02489832,42791.0,42790.0,0.35695597]